fUSD/lending_fUSD_20240514
["ID","MTS","AMOUNT","RATE_DAILY","PERIOD"]
[326971211,1715658637132,-906.49775217,0.000129,2]
[326971212,1715658637141,-906.49775217,0.000129,2]
[326971213,1715658637150,-906.49775217,0.000129,2]
[326971214,1715658637160,-906.49775217,0.000129,2]
[326971215,1715658637170,-906.49775217,0.000129,2]
[326971216,1715658637179,-199.19296422,0.000129,2]
[326971217,1715658637188,-759.16590996,0.000129,2]
[326971218,1715658637198,-3909.08075361,0.000129,2]
[326971219,1715658637207,-150.0,0.00012905,2]
[326971220,1715658637216,-150.0,0.00012905,2]
[326971221,1715658637226,-265.29749987,0.00012908,2]
[326971222,1715658637235,-150.84039385,0.00012908,2]
[326971223,1715658637244,-150.0,0.00012908,2]
[326971224,1715658637254,-150.670105,0.00012909,2]
[326971225,1715658637264,-265.29749987,0.00012921,2]
[326971226,1715658637273,-150.84039385,0.00012921,2]
[326971227,1715658637282,-150.0,0.00012927,2]
[326971228,1715658637292,-265.29749987,0.00012934,2]
[326971229,1715658637301,-150.84039385,0.00012934,2]
[326971230,1715658637310,-150.677798,0.00012943,2]
[326971231,1715658637319,-150.0,0.00012946,2]
[326971232,1715658637328,-265.29749987,0.00012947,2]
[326971233,1715658637338,-150.84039385,0.00012947,2]
[326971234,1715658637347,-150.0,0.00012947,2]
[326971235,1715658637356,-152.0,0.00012954,3]
[326971236,1715658637365,-265.29749987,0.0001296,2]
[326971237,1715658637374,-150.84039385,0.0001296,2]
[326971238,1715658637383,-150.0,0.00012967,2]
[326971239,1715658637393,-265.29749987,0.00012973,2]
[326971240,1715658637401,-150.84039385,0.00012973,2]
[326971241,1715658637411,-4592.70052151,0.00012985,2]
[326971242,1715658637420,-213.0,0.00012986,2]
[326971243,1715658637429,-265.29749987,0.00012986,2]
[326971244,1715658637439,-150.84039385,0.00012986,2]
[326971245,1715658637448,-161.64791248,0.00012986,2]
[326971246,1715658637457,-155.59849735,0.00012986,2]
[326971247,1715658637466,-244.58227027,0.00012986,2]
[326971248,1715658637475,-267.40543755,0.00012986,2]
[326971249,1715658637485,-168.67387992,0.00012986,2]
[326971250,1715658637494,-178.66484798,0.00012986,2]
[326971252,1715658637503,-166.60219538,0.00012986,2]
[326971253,1715658637516,-174.3348282,0.00012986,2]
[326971254,1715658637525,-199.79163564,0.00012986,2]
[326971255,1715658637534,-158.36080585,0.00012986,2]
[326971256,1715658637544,-166.78278404,0.00012988,2]
[326971257,1715658637554,-430.13586897,0.00012991,2]
[326971259,1715658637563,-500.0,0.00012995,2]
[326971261,1715658637573,-500.0,0.00012995,2]
[326971263,1715658637587,-500.0,0.00012995,2]
[326971264,1715658637596,-500.0,0.00012995,2]
[326971265,1715658637606,-500.0,0.00012995,2]
[326971266,1715658637615,-500.0,0.00012995,2]
[326971267,1715658637625,-500.0,0.00012995,2]
[326971268,1715658637634,-500.0,0.00012995,2]
[326971269,1715658637643,-500.0,0.00012995,2]
[326971270,1715658637653,-500.0,0.00012995,2]
[326971271,1715658637664,-500.0,0.00012995,2]
[326971272,1715658637673,-9569.5736742,0.00012996,2]
[326971273,1715658637683,-1095.2097101,0.00012996,2]
[326971277,1715658637692,-1242.14667527,0.00012997,2]
[326971279,1715658637701,-2458.57224863,0.00012997,2]
[326971281,1715658637711,-155.21412531,0.00012997,2]
[326971283,1715658637719,-412.54503504,0.00012997,2]
[326971285,1715658637729,-155.0,0.00012997,2]
[326971287,1715658637738,-809.34260848,0.00012997,2]
[326971289,1715658637748,-625.32897479,0.00012997,2]
[326971291,1715658637758,-156.08093987,0.00012997,2]
[326971293,1715658637768,-305.84203485,0.00012997,2]
[326971295,1715658637778,-222.36419723,0.00012997,2]
[326971297,1715658637787,-204.02055952,0.00012997,2]
[326971299,1715658637796,-334.36260949,0.00012997,2]
[326971300,1715658637806,-204.35063665,0.00012997,2]
[326971301,1715658637815,-200.3428451,0.00012997,2]
[326971302,1715658637825,-175.09166557,0.00012997,2]
[326971303,1715658637835,-199.52131827,0.00012997,2]
[326971304,1715658637844,-2560.44595506,0.00012997,2]
[326971305,1715658637854,-7441.87437763,0.00012997,2]
[326971306,1715658637863,-155.53983278,0.00012997,2]
[326971307,1715658637873,-208.40272462,0.00012997,2]
[326971308,1715658637882,-265.48881405,0.00012997,2]
[326971309,1715658637892,-210.78505994,0.00012997,2]
[326971310,1715658637901,-325.31705037,0.00012997,2]
[326971311,1715658637912,-180.44740672,0.00012997,2]
[326971312,1715658637922,-210.00334834,0.00012997,2]
[326971313,1715658637932,-788.94409382,0.00012997,2]
[326971314,1715658637942,-204.91630965,0.00012997,2]
[326971315,1715658637953,-155.47497679,0.00012997,2]
[326971316,1715658637963,-534.843597,0.00012997,2]
[326971317,1715658637972,-618.47223253,0.00012997,2]
[326971318,1715658637981,-500.0,0.00012997,2]
[326971319,1715658637990,-500.0,0.00012997,2]
[326971320,1715658637999,-221.60394225,0.00012997,2]
[326971321,1715658638008,-500.0,0.00012997,2]
[326971322,1715658638018,-217.41105775,0.00012997,2]
[326971323,1715658638028,-500.0,0.00012997,2]
[326971324,1715658638038,-479.38,0.00012997,2]
[326971325,1715658638048,-500.0,0.00012997,2]
[326971326,1715658638057,-500.0,0.00012997,2]
[326971327,1715658638066,-486.88624846,0.00012997,2]
[326971328,1715658638076,-500.0,0.00012997,2]
[326971329,1715658638087,-500.0,0.00012997,2]
[326971330,1715658638097,-345.63,0.00012997,2]
[326971331,1715658638107,-571.25250555,0.00012997,2]
[326971332,1715658638117,-500.0,0.00012997,2]
[326971333,1715658638126,-500.0,0.00012997,2]
[326971334,1715658638136,-500.0,0.00012997,2]
[326971335,1715658638146,-225.29,0.00012997,2]
[326971336,1715658638155,-500.0,0.00012997,2]
[326971339,1715658638165,-500.0,0.00012997,2]
[326971341,1715658638174,-520.1804712,0.00012997,2]
[326971342,1715658638183,-500.0,0.00012997,2]
[326971344,1715658638192,-500.0,0.00012997,2]
[326971346,1715658638201,-562.90761388,0.00012997,2]
[326971348,1715658638211,-623.09,0.00012997,2]
[326971349,1715658638220,-500.0,0.00012997,2]
[326971350,1715658638230,-500.0,0.00012997,2]
[326971351,1715658638240,-515.11,0.00012997,2]
[326971352,1715658638249,-514.93315261,0.00012997,2]
[326971353,1715658638258,-560.6607242,0.00012997,2]
[326971354,1715658638268,-500.0,0.00012997,2]
[326971355,1715658638278,-500.0,0.00012997,2]
[326971356,1715658638287,-519.59410334,0.00012997,2]
[326971357,1715658638297,-523.55536935,0.00012997,2]
[326971358,1715658638306,-500.0,0.00012997,2]
[326971359,1715658638314,-177.29,0.00012997,2]
[326971360,1715658638323,-230.81,0.00012997,2]
[326971361,1715658638332,-500.0,0.00012997,2]
[326971362,1715658638342,-500.0,0.00012997,2]
[326971363,1715658638351,-556.93,0.00012997,2]
[326971364,1715658638359,-357.51121146,0.00012997,2]
[326971365,1715658638368,-523.92376383,0.00012997,2]
[326971366,1715658638378,-500.0,0.00012997,2]
[326971367,1715658638387,-202.65361939,0.00012997,2]
[326971368,1715658638396,-544.95,0.00012997,2]
[326971369,1715658638405,-587.7251036,0.00012997,2]
[326971370,1715658638415,-520.13962405,0.00012997,2]
[326971371,1715658638424,-534.07764661,0.00012997,2]
[326971372,1715658638433,-500.0,0.00012997,2]
[326971373,1715658638443,-635.35071778,0.00012997,2]
[326971374,1715658638451,-521.70014544,0.00012997,2]
[326971375,1715658638460,-500.0,0.00012997,2]
[326971376,1715658638469,-500.0,0.00012997,2]
[326971377,1715658638478,-500.0,0.00012997,2]
[326971378,1715658638487,-500.0,0.00012997,2]
[326971379,1715658638496,-518.91897766,0.00012997,2]
[326971380,1715658638505,-500.0,0.00012997,2]
[326971381,1715658638515,-500.0,0.00012997,2]
[326971382,1715658638524,-500.0,0.00012997,2]
[326971383,1715658638533,-471.43180001,0.00012997,2]
[326971384,1715658638542,-500.0,0.00012997,2]
[326971385,1715658638551,-500.0,0.00012997,2]
[326971386,1715658638560,-344.0635053,0.00012997,2]
[326971387,1715658638569,-500.0,0.00012997,2]
[326971388,1715658638580,-500.0,0.00012997,2]
[326971389,1715658638591,-382.9,0.00012997,2]
[326971390,1715658638601,-500.0,0.00012997,2]
[326971391,1715658638611,-500.0,0.00012997,2]
[326971392,1715658638621,-500.0,0.00012997,2]
[326971393,1715658638630,-500.0,0.00012997,2]
[326971394,1715658638639,-452.91,0.00012997,2]
[326971395,1715658638648,-163.15627105,0.00012997,2]
[326971396,1715658638658,-363.32,0.00012997,2]
[326971397,1715658638667,-455.56,0.00012997,2]
[326971398,1715658638676,-565.85,0.00012997,2]
[326971399,1715658638686,-500.0,0.00012997,2]
[326971400,1715658638695,-500.0,0.00012997,2]
[326971401,1715658638704,-288.03912655,0.00012997,2]
[326971402,1715658638713,-500.0,0.00012997,2]
[326971403,1715658638722,-500.0,0.00012997,2]
[326971404,1715658638732,-290.65,0.00012997,2]
[326971405,1715658638741,-500.0,0.00012997,2]
[326971406,1715658638751,-500.0,0.00012997,2]
[326971407,1715658638760,-156.69107951,0.00012997,2]
[326971408,1715658638771,-583.1,0.00012997,2]
[326971409,1715658638780,-628.48,0.00012997,2]
[326971410,1715658638789,-500.0,0.00012997,2]
[326971411,1715658638798,-500.0,0.00012997,2]
[326971412,1715658638807,-554.95,0.00012997,2]
[326971413,1715658638816,-572.78,0.00012997,2]
[326971414,1715658638827,-218.27,0.00012997,2]
[326971415,1715658638836,-228.04,0.00012997,2]
[326971416,1715658638845,-500.0,0.00012997,2]
[326971417,1715658638858,-249.73,0.00012997,2]
[326971418,1715658638869,-542.76,0.00012997,2]
[326971419,1715658638878,-500.0,0.00012997,2]
[326971420,1715658638888,-500.0,0.00012997,2]
[326971421,1715658638898,-500.0,0.00012997,2]
[326971422,1715658638908,-500.0,0.00012997,2]
[326971423,1715658638917,-500.0,0.00012997,2]
[326971424,1715658638927,-500.0,0.00012997,2]
[326971425,1715658638937,-343.98,0.00012997,2]
[326971426,1715658638947,-500.0,0.00012997,2]
[326971427,1715658638955,-482.13,0.00012997,2]
[326971428,1715658638965,-500.0,0.00012997,2]
[326971429,1715658638974,-500.0,0.00012997,2]
[326971430,1715658638984,-500.0,0.00012997,2]
[326971431,1715658638994,-253.75200674,0.00012997,2]
[326971432,1715658639004,-236.58,0.00012997,2]
[326971433,1715658639013,-514.61332372,0.00012997,2]
[326971434,1715658639023,-500.0,0.00012997,2]
[326971435,1715658639032,-500.0,0.00012997,2]
[326971436,1715658639042,-281.48,0.00012997,2]
[326971437,1715658639051,-500.0,0.00012997,2]
[326971438,1715658639061,-500.0,0.00012997,2]
[326971439,1715658639071,-500.0,0.00012997,2]
[326971440,1715658639080,-205.54,0.00012997,2]
[326971441,1715658639090,-500.0,0.00012997,2]
[326971442,1715658639100,-500.0,0.00012997,2]
[326971443,1715658639109,-403.98471828,0.00012997,2]
[326971444,1715658639119,-500.0,0.00012997,2]
[326971445,1715658639128,-500.0,0.00012997,2]
[326971446,1715658639138,-500.0,0.00012997,2]
[326971447,1715658639148,-430.37716146,0.00012997,2]
[326971448,1715658639158,-500.0,0.00012997,2]
[326971449,1715658639167,-614.96,0.00012997,2]
[326971450,1715658639177,-500.0,0.00012997,2]
[326971451,1715658639187,-176.0,0.00012997,2]
[326971452,1715658639197,-500.0,0.00012997,2]
[326971453,1715658639207,-500.0,0.00012997,2]
[326971454,1715658639217,-500.0,0.00012997,2]
[326971455,1715658639227,-420.85,0.00012997,2]
[326971456,1715658639238,-500.0,0.00012997,2]
[326971457,1715658639248,-177.96621615,0.00012997,2]
[326971458,1715658639258,-500.0,0.00012997,2]
[326971459,1715658639268,-500.0,0.00012997,2]
[326971460,1715658639278,-500.0,0.00012997,2]
[326971461,1715658639288,-500.0,0.00012997,2]
[326971462,1715658639298,-500.0,0.00012997,2]
[326971463,1715658639308,-500.0,0.00012997,2]
[326971464,1715658639318,-195.47,0.00012997,2]
[326971465,1715658639328,-500.0,0.00012997,2]
[326971466,1715658639338,-500.0,0.00012997,2]
[326971467,1715658639348,-500.0,0.00012997,2]
[326971468,1715658639357,-193.44,0.00012997,2]
[326971469,1715658639367,-500.0,0.00012997,2]
[326971470,1715658639377,-500.0,0.00012997,2]
[326971471,1715658639386,-320.13586836,0.00012997,2]
[326971474,1715658639761,-179.86413164,0.00012997,2]
[326971475,1715658639772,-282.36872813,0.00012997,2]
[326971476,1715658639782,-511.0,0.00012998,2]
[326971477,1715658639791,-2360.54611263,0.00012998,2]
[326971478,1715658639800,-297.7279017,0.00012998,2]
[326971479,1715658639810,-160.14124295,0.00012998,2]
[326971480,1715658639820,-6420.57565022,0.00012998,2]
[326971481,1715658639829,-159.03429793,0.00012998,2]
[326971482,1715658639839,-156.9800661,0.00012998,2]
[326971483,1715658639848,-167.96352889,0.00012998,2]
[326971484,1715658639858,-1270.37516817,0.00012998,2]
[326971485,1715658639867,-176.12748192,0.00012998,2]
[326971486,1715658639877,-232.632512,0.00012998,2]
[326971487,1715658639887,-307.96915422,0.00012998,2]
[326971488,1715658639897,-2182.52647844,0.00012998,2]
[326971489,1715658639907,-341.96790398,0.00012998,2]
[326971490,1715658639916,-161.0267823,0.00012998,2]
[326971491,1715658639926,-170.51541539,0.00012998,2]
[326971492,1715658639935,-317.63013013,0.00012998,2]
[326971493,1715658639945,-586.10369344,0.00012998,2]
[326971494,1715658639955,-1687.30602658,0.00012998,2]
[326971495,1715658639965,-1504.74310501,0.00012998,2]
[326971496,1715658639975,-265.16739651,0.00012998,2]
[326971497,1715658639985,-200.35670169,0.00012998,2]
[326971498,1715658639995,-690.35957269,0.00012998,2]
[326971499,1715658640004,-197.37901202,0.00012998,2]
[326971500,1715658640014,-155.8731225,0.00012998,2]
[326971501,1715658640024,-155.46008786,0.00012998,2]
[326971502,1715658640033,-155.52112804,0.00012998,2]
[326971503,1715658640044,-195.42376414,0.00012998,2]
[326971504,1715658640053,-155.80248552,0.00012998,2]
[326971505,1715658640063,-191.83200764,0.00012998,2]
[326971506,1715658640073,-281.86435257,0.00012998,2]
[326971507,1715658640082,-157.12540668,0.00012998,2]
[326971508,1715658640092,-2304.91758473,0.00012998,2]
[326971509,1715658640101,-155.62813572,0.00012998,2]
[326971510,1715658640111,-157.44246464,0.00012998,2]
[326971511,1715658640120,-1216.98055962,0.00012998,2]
[326971512,1715658640130,-155.0,0.00012998,2]
[326971513,1715658640139,-168.37955163,0.00012998,2]
[326971514,1715658640148,-5650.13391566,0.00012998,2]
[326971515,1715658640158,-447.26436978,0.00012998,2]
[326971516,1715658640167,-188.25108374,0.00012998,2]
[326971517,1715658640177,-79642.84967131,0.00012998,2]
[326971518,1715658640188,-504.602,0.00012998,2]
[326971519,1715658640200,-213507.1458328,0.00012998,2]
[326971520,1715658640229,-500.0,0.00012876,2]
[326971521,1715658640239,-4075.6,0.00012998,2]
[326971522,1715658640250,-380296.93039196,0.00012998,2]
[326971533,1715658640677,-624.25320584,0.00012997,2]
[326971534,1715658640686,-502.68065429,0.00012997,2]
[326971535,1715658640696,-504.02171187,0.00012997,2]
[326971536,1715658640705,-115163.74492547,0.00012998,2]
[326971537,1715658640716,-140066.7417799,0.00012998,2]
[326971538,1715658640727,-794.73235085,0.00012998,2]
[326971539,1715658640753,-2773.28413778,0.00012998,2]
[326971540,1715658640779,-500.86266237,0.00012997,2]
[326971541,1715658640788,-6343.03733763,0.00012998,2]
[326971542,1715658640818,-771.07115909,0.00012998,2]
[326971543,1715658640829,-882.06164822,0.00012998,2]
[326971544,1715658640938,-515.04824103,0.00012998,2]
[326971545,1715658640950,-950.36,0.00012998,2]
[326971546,1715658640968,-280.00099966,0.00012997,2]
[326971547,1715658640983,-219.99900034,0.00012997,2]
[326971548,1715658640992,-4780.00099966,0.00012998,2]
[326971549,1715658641013,-812.00171895,0.00012998,2]
[326971550,1715658641039,-1004.5932,0.00012998,2]
[326971551,1715658641050,-269249.09441735,0.00012998,2]
[326971552,1715658641065,-5003.9579722,0.00012998,2]
[326971553,1715658641076,-814.42149292,0.00012998,2]
[326971554,1715658641130,-168.91844552,0.00012998,2]
[326971566,1715658642865,-6399.8147,0.00012998,2]
[326971570,1715658643123,-2137.78821852,0.00012998,2]
[326971572,1715658643143,-8612.29288161,0.00012998,2]
[326971573,1715658643157,-470.23000002,0.00012998,2]
[326971574,1715658643168,-49187.50473394,0.00012998,2]
[326971575,1715658643197,-437.64556488,0.00012997,2]
[326971578,1715658645797,-62.35443512,0.00012997,2]
[326971579,1715658645807,-201.27841131,0.00012997,2]
[326971580,1715658645864,-298.72158869,0.00012997,2]
[326971581,1715658645875,-271.65992579,0.00012997,2]
[326971582,1715658645885,-3069.00528552,0.00012998,2]
[326971583,1715658645927,-38722.4193582,0.00012998,2]
[326971584,1715658680761,16374.6123,0.00011311,2]
[326971585,1715658710164,409.50018805,0.00011311,2]
[326971588,1715658726169,411.16363563,0.00011311,2]
[326971593,1715659197299,23890.0,0.00011377,2]
[326971595,1715659281258,1214.91,0.00011309,2]
[326971596,1715659313033,11929.3832,0.0001135,2]
[326971597,1715659397354,250.0,0.00011402,2]
[326971598,1715659490900,1000.0,0.0003,120]
[326971599,1715659495830,1000.0,0.0003,120]
[326971600,1715659498109,1000.0,0.0003,120]
[326971601,1715659500107,1000.0,0.0003,120]
[326971602,1715659504283,1000.0,0.0003,120]
[326971603,1715659530574,600.0,0.00010804,2]
[326971606,1715659646604,150.0,0.00010959,2]
[326971607,1715659669487,763.4774014,0.0003,120]
[326971608,1715659670256,26555.37589654,0.00011,2]
[326971609,1715659692974,768.4636535,0.0003,120]
[326971610,1715659734227,768.463653,0.0003,120]
[326971611,1715659743385,809.6,0.0001081,2]
[326971612,1715659754557,768.463653,0.0003,120]
[326971618,1715659831910,-1244.50447406,0.00011408,2]
[326971619,1715659831920,-541.84904887,0.00011409,2]
[326971620,1715659831929,-157.37297207,0.0001141,2]
[326971621,1715659831939,-159.82,0.0001146,2]
[326971622,1715659831949,-167.08,0.0001151,2]
[326971623,1715659831963,-400.0,0.00011562,2]
[326971624,1715659831973,-159.82,0.0001158,2]
[326971625,1715659831982,-150.0,0.00011688,2]
[326971626,1715659831991,-750.90499029,0.00011697,2]
[326971627,1715659832000,-159.82,0.00011699,2]
[326971628,1715659832010,-150.99,0.00011699,2]
[326971629,1715659832019,-150.99,0.00011699,2]
[326971630,1715659832028,-150.0,0.00011704,2]
[326971631,1715659832041,-2922.3862,0.00011705,2]
[326971632,1715659832052,-210.4846,0.00011705,2]
[326971633,1715659832061,-1000.0,0.00011705,2]
[326971634,1715659832071,-1023.36979373,0.00011705,2]
[326971635,1715659832084,-1476.63020627,0.00011705,2]
[326971636,1715659832094,-157.37297207,0.00011706,2]
[326971637,1715659832103,-150.0,0.00011708,2]
[326971638,1715659832113,-203.0,0.0001172,2]
[326971639,1715659832123,-311.0,0.0001172,2]
[326971640,1715659832133,-150.0,0.00011729,2]
[326971641,1715659832142,-150.0,0.0001175,2]
[326971642,1715659832151,-150.0,0.0001177,2]
[326971643,1715659832160,-150.0,0.00011791,2]
[326971644,1715659832170,-225.37045452,0.00011795,2]
[326971645,1715659832180,-164.72,0.00011795,2]
[326971646,1715659832189,-164.72,0.00011795,2]
[326971647,1715659832198,-11445.35580864,0.00011805,2]
[326971648,1715659832216,-883.54995,0.00011805,2]
[326971649,1715659832228,-846.47,0.00011805,2]
[326971650,1715659832239,-350.2299999,0.00011805,2]
[326971652,1715659832251,-2812.13061311,0.00011805,2]
[326971654,1715659832262,-158889.58127298,0.00011805,2]
[326971656,1715659832286,-358.22005688,0.00011805,2]
[326971657,1715659832297,-5461.11031969,0.00011805,2]
[326971658,1715659832308,-1357.62885533,0.00011805,2]
[326971662,1715659837950,-21847.25615211,0.00011805,2]
[326971663,1715659838008,-116794.70049747,0.00011805,2]
[326971664,1715659838020,-140066.7417799,0.00011805,2]
[326971665,1715659838031,-323.28409323,0.00011805,2]
[326971667,1715659838118,-405.00005,0.00011805,2]
[326971668,1715659838145,-29160.10820205,0.00011805,2]
[326971669,1715659838234,-196971.84078578,0.00011805,2]
[326971670,1715659838244,-999.99,0.00011806,2]
[326971671,1715659838254,-138304.3056,0.00011806,2]
[326971672,1715659838263,-18368.2369,0.00011807,2]
[326971673,1715659838273,-11487.2992,0.00011807,2]
[326971674,1715659838282,-1895.685,0.00011807,2]
[326971675,1715659838291,-299.99,0.00011807,2]
[326971676,1715659838302,-3235.88,0.00011807,2]
[326971677,1715659838313,-150.0,0.00011811,2]
[326971678,1715659838323,-159.82,0.00011819,2]
[326971679,1715659838334,-150.0,0.00011832,2]
[326971680,1715659838343,-150.0,0.00011853,2]
[326971682,1715659838353,-150.0,0.00011873,2]
[326971684,1715659838362,-150.0,0.00011894,2]
[326971685,1715659838371,-164.72,0.00011897,2]
[326971686,1715659838380,-1000.0,0.00011907,2]
[326971687,1715659838390,-39127.5656,0.00011907,2]
[326971688,1715659838399,-100000.0,0.00011907,2]
[326971690,1715659838407,-150.0,0.00011914,2]
[326971693,1715659838416,-150.0,0.00011935,2]
[326971695,1715659838425,-159.82,0.00011938,2]
[326971696,1715659838434,-150.0,0.00011956,2]
[326971697,1715659838443,-499.99,0.00011957,2]
[326971698,1715659838452,-150.0,0.00011976,2]
[326971699,1715659838461,-150.0,0.00011997,2]
[326971700,1715659838470,-150.0,0.00012017,2]
[326971701,1715659838479,-150.0,0.00012038,2]
[326971702,1715659838488,-159.82,0.00012057,2]
[326971703,1715659838497,-150.0,0.00012059,2]
[326971704,1715659838506,-150.0,0.00012079,2]
[326971705,1715659838516,-150.0,0.000121,2]
[326971706,1715659838526,-203.0,0.0001211,2]
[326971707,1715659838535,-311.0,0.0001211,2]
[326971708,1715659838544,-150.0,0.00012121,2]
[326971709,1715659838553,-150.0,0.00012141,2]
[326971710,1715659838562,-600.0,0.00012155,2]
[326971711,1715659838571,-150.0,0.00012162,2]
[326971712,1715659838581,-150.0,0.00012182,2]
[326971713,1715659838590,-150.0,0.00012203,2]
[326971714,1715659838599,-150.0,0.00012224,2]
[326971715,1715659838608,-150.0,0.00012244,2]
[326971716,1715659838616,-150.0,0.00012265,2]
[326971717,1715659838625,-150.0,0.00012285,2]
[326971718,1715659838634,-150.0,0.00012306,2]
[326971719,1715659838644,-150.0,0.00012327,2]
[326971720,1715659838653,-328.65616655,0.00012347,2]
[326971721,1715659838662,-150.0,0.00012347,2]
[326971722,1715659838671,-150.0,0.00012368,2]
[326971723,1715659838895,-150.0,0.00012389,2]
[326971724,1715659838905,-150.0,0.00012409,2]
[326971725,1715659838915,-150.0,0.0001243,2]
[326971726,1715659838925,-150.0,0.0001245,2]
[326971727,1715659838934,-150.0,0.00012471,2]
[326971728,1715659838944,-150.0,0.00012492,2]
[326971729,1715659838956,-150.670105,0.00012493,2]
[326971730,1715659838965,-150.670105,0.00012493,2]
[326971731,1715659838975,-175.781794,0.00012493,2]
[326971732,1715659838984,-203.0,0.000125,2]
[326971733,1715659838993,-311.0,0.000125,2]
[326971734,1715659839004,-150.0,0.00012512,2]
[326971735,1715659839013,-150.677798,0.00012525,2]
[326971736,1715659839023,-150.677798,0.00012525,2]
[326971737,1715659839033,-175.790768,0.00012525,2]
[326971738,1715659839044,-150.0,0.00012533,2]
[326971739,1715659839054,-150.0,0.00012553,2]
[326971740,1715659839063,-184.91,0.00012557,2]
[326971741,1715659839073,-150.0,0.00012574,2]
[326971742,1715659839082,-150.0,0.00012595,2]
[326971743,1715659839092,-150.0,0.00012615,2]
[326971744,1715659839101,-150.0,0.00012636,2]
[326971745,1715659839112,-150.0,0.00012656,2]
[326971746,1715659839122,-150.0,0.00012677,2]
[326971747,1715659839131,-150.0,0.00012698,2]
[326971748,1715659839141,-150.670105,0.00012701,2]
[326971749,1715659839151,-150.670105,0.00012701,2]
[326971750,1715659839161,-150.0,0.00012718,2]
[326971751,1715659839170,-150.677798,0.00012734,2]
[326971752,1715659839180,-150.677798,0.00012734,2]
[326971753,1715659839189,-150.0,0.00012739,2]
[326971754,1715659839198,-150.0,0.0001276,2]
[326971755,1715659839208,-150.0,0.0001278,2]
[326971756,1715659839217,-284.40698226,0.000128,2]
[326971757,1715659839226,-158.44069888,0.000128,2]
[326971758,1715659839236,-150.0,0.00012801,2]
[326971759,1715659839245,-284.40698224,0.00012809,2]
[326971760,1715659839254,-284.40698224,0.00012818,2]
[326971761,1715659839264,-150.0,0.00012821,2]
[326971762,1715659839274,-284.40698224,0.00012827,2]
[326971763,1715659839283,-284.40698224,0.00012836,2]
[326971764,1715659839293,-150.0,0.00012842,2]
[326971765,1715659839302,-284.40698224,0.00012845,2]
[326971766,1715659839312,-284.40698224,0.00012855,2]
[326971767,1715659839323,-150.0,0.00012863,2]
[326971768,1715659839333,-284.40698224,0.00012864,2]
[326971769,1715659839343,-565.0,0.00012866,2]
[326971770,1715659839352,-22811.97433389,0.00012867,2]
[326971771,1715659839362,-284.40698224,0.00012873,2]
[326971772,1715659839371,-156.09221294,0.00012876,2]
[326971773,1715659839383,-556.28398539,0.00012876,2]
[326971774,1715659839392,-510.60256034,0.00012876,2]
[326971775,1715659839402,-624.25320584,0.00012876,2]
[326971776,1715659839411,-203.0,0.0001288,2]
[326971777,1715659839421,-311.0,0.0001288,2]
[326971778,1715659839431,-284.40698224,0.00012882,2]
[326971779,1715659839441,-150.0,0.00012883,2]
[326971780,1715659839451,-164.72,0.00012889,2]
[326971781,1715659839460,-500.0,0.00012889,2]
[326971782,1715659839470,-500.0,0.00012889,2]
[326971783,1715659839479,-284.40698224,0.00012891,2]
[326971784,1715659839488,-29968.9754,0.00012899,2]
[326971785,1715659839498,-500.0,0.00012899,2]
[326971786,1715659839507,-146579.65769136,0.00012899,2]
[326971787,1715659839521,-597.4,0.00012899,2]
[326971792,1715659840037,-453.8784,0.00012899,2]
[326971793,1715659840094,-1199.93123017,0.00012899,2]
[326971794,1715659840153,-745.0,0.00012899,2]